fUST/lending_fUST_20250210
["ID","MTS","AMOUNT","RATE_DAILY","PERIOD"]
[352618239,1739202643114,-500.0,0.00011232,2]
[352618241,1739202643124,-502.91356902,0.00011232,2]
[352618243,1739202643134,-500.0,0.00011232,2]
[352618245,1739202643143,-500.0,0.00011232,2]
[352618247,1739202643152,-840.08,0.00011232,2]
[352618249,1739202643163,-500.0,0.00011232,2]
[352618251,1739202643173,-500.0,0.00011232,2]
[352618253,1739202643182,-479.39863776,0.00011232,2]
[352618255,1739202643191,-682.96,0.00011232,2]
[352618257,1739202643201,-500.0,0.00011232,2]
[352618259,1739202643210,-451.78512552,0.00011232,2]
[352618261,1739202643219,-500.0,0.00011232,2]
[352618263,1739202643229,-500.0,0.00011232,2]
[352618265,1739202643239,-500.0,0.00011232,2]
[352618267,1739202643248,-500.0,0.00011232,2]
[352618269,1739202643257,-500.0,0.00011232,2]
[352618271,1739202643266,-500.0,0.00011232,2]
[352618273,1739202643275,-386.32956708,0.00011232,2]
[352618275,1739202643285,-500.0,0.00011232,2]
[352618277,1739202643294,-540.58338602,0.00011232,2]
[352618279,1739202643304,-500.0,0.00011232,2]
[352618281,1739202643313,-500.0,0.00011232,2]
[352618283,1739202643322,-500.0,0.00011232,2]
[352618284,1739202643332,-500.0,0.00011232,2]
[352618285,1739202643341,-500.0,0.00011232,2]
[352618287,1739202643351,-959.53,0.00011232,2]
[352618289,1739202643361,-500.0,0.00011232,2]
[352618291,1739202643371,-500.0,0.00011232,2]
[352618293,1739202643380,-500.0,0.00011232,2]
[352618295,1739202643390,-500.0,0.00011232,2]
[352618296,1739202643399,-601.34,0.00011232,2]
[352618297,1739202643414,-500.0,0.00011232,2]
[352618298,1739202643424,-500.0,0.00011232,2]
[352618299,1739202643434,-5550.25,0.00011232,2]
[352618300,1739202643443,-500.0,0.00011232,2]
[352618301,1739202643453,-500.0,0.00011232,2]
[352618302,1739202643462,-500.0,0.00011232,2]
[352618303,1739202643472,-500.0,0.00011232,2]
[352618304,1739202643482,-500.0,0.00011232,2]
[352618305,1739202643492,-590.44,0.00011232,2]
[352618306,1739202643502,-929.02,0.00011232,2]
[352618307,1739202643511,-500.0,0.00011232,2]
[352618308,1739202643521,-500.0,0.00011232,2]
[352618309,1739202643531,-2809.78,0.00011232,2]
[352618310,1739202643541,-500.0,0.00011232,2]
[352618311,1739202643551,-500.0,0.00011232,2]
[352618312,1739202643560,-500.0,0.00011232,2]
[352618314,1739202643570,-500.0,0.00011232,2]
[352618316,1739202643579,-500.0,0.00011232,2]
[352618317,1739202643589,-524.23,0.00011232,2]
[352618319,1739202643599,-500.0,0.00011232,2]
[352618322,1739202643608,-500.0,0.00011232,2]
[352618325,1739202643618,-607.76,0.00011232,2]
[352618330,1739202643628,-1474.98,0.00011232,2]
[352618333,1739202643637,-760.7,0.00011232,2]
[352618337,1739202643646,-500.0,0.00011232,2]
[352618341,1739202643656,-2308.8,0.00011232,2]
[352618345,1739202643668,-500.0,0.00011232,2]
[352618349,1739202643678,-590.75,0.00011232,2]
[352618352,1739202643687,-500.0,0.00011232,2]
[352618355,1739202643696,-500.0,0.00011232,2]
[352618357,1739202643705,-500.0,0.00011232,2]
[352618359,1739202643714,-15619.87,0.00011232,2]
[352618361,1739202643723,-500.0,0.00011232,2]
[352618364,1739202643732,-500.0,0.00011232,2]
[352618367,1739202643742,-580.46,0.00011232,2]
[352618370,1739202643752,-500.0,0.00011232,2]
[352618372,1739202643761,-500.0,0.00011232,2]
[352618374,1739202643770,-500.0,0.00011232,2]
[352618375,1739202643780,-500.0,0.00011232,2]
[352618376,1739202643789,-308.61843822,0.00011232,2]
[352618377,1739202643799,-767.98,0.00011232,2]
[352618378,1739202643808,-500.0,0.00011232,2]
[352618379,1739202643818,-500.0,0.00011232,2]
[352618380,1739202643827,-500.0,0.00011232,2]
[352618381,1739202643836,-500.0,0.00011232,2]
[352618382,1739202643846,-500.0,0.00011232,2]
[352618383,1739202643857,-500.0,0.00011232,2]
[352618384,1739202643867,-500.0,0.00011232,2]
[352618385,1739202643876,-500.0,0.00011232,2]
[352618386,1739202643885,-7290.29,0.00011232,2]
[352618387,1739202643895,-500.0,0.00011232,2]
[352618388,1739202643904,-500.0,0.00011232,2]
[352618389,1739202643917,-637.3,0.00011232,2]
[352618390,1739202643930,-500.0,0.00011232,2]
[352618391,1739202643940,-500.0,0.00011232,2]
[352618392,1739202643950,-500.0,0.00011232,2]
[352618393,1739202643959,-500.0,0.00011232,2]
[352618394,1739202643968,-500.0,0.00011232,2]
[352618395,1739202643978,-714.7,0.00011232,2]
[352618396,1739202643987,-500.0,0.00011232,2]
[352618397,1739202643996,-500.0,0.00011232,2]
[352618398,1739202644006,-500.0,0.00011232,2]
[352618399,1739202644017,-500.0,0.00011232,2]
[352618400,1739202644026,-500.0,0.00011232,2]
[352618401,1739202644035,-500.0,0.00011232,2]
[352618402,1739202644045,-500.0,0.00011232,2]
[352618403,1739202644054,-500.0,0.00011232,2]
[352618404,1739202644063,-548.48,0.00011232,2]
[352618405,1739202644073,-500.0,0.00011232,2]
[352618406,1739202644084,-500.0,0.00011232,2]
[352618407,1739202644093,-1380.01,0.00011232,2]
[352618408,1739202644103,-1198.84,0.00011232,2]
[352618409,1739202644113,-500.0,0.00011232,2]
[352618410,1739202644123,-3405.05,0.00011232,2]
[352618411,1739202644132,-665.96,0.00011232,2]
[352618412,1739202644142,-719.41,0.00011232,2]
[352618413,1739202644152,-389.23331639,0.00011232,2]
[352618414,1739202644162,-371.33958002,0.00011232,2]
[352618415,1739202644171,-500.0,0.00011232,2]
[352618416,1739202644180,-531.7758061,0.00011232,2]
[352618417,1739202644189,-212.33659752,0.00011232,2]
[352618418,1739202644199,-500.0,0.00011232,2]
[352618419,1739202644208,-500.0,0.00011232,2]
[352618420,1739202644217,-500.0,0.00011232,2]
[352618421,1739202644227,-551.03,0.00011232,2]
[352618422,1739202644236,-500.0,0.00011232,2]
[352618423,1739202644245,-500.0,0.00011232,2]
[352618424,1739202644255,-500.0,0.00011232,2]
[352618425,1739202644264,-1686.9,0.00011232,2]
[352618426,1739202644274,-1707.89,0.00011232,2]
[352618427,1739202644283,-500.0,0.00011232,2]
[352618428,1739202644293,-500.0,0.00011232,2]
[352618429,1739202644302,-500.0,0.00011232,2]
[352618430,1739202644311,-500.0,0.00011232,2]
[352618431,1739202644320,-500.0,0.00011232,2]
[352618432,1739202644330,-1024.33,0.00011232,2]
[352618433,1739202644339,-500.0,0.00011232,2]
[352618434,1739202644348,-500.0,0.00011232,2]
[352618435,1739202644358,-500.0,0.00011232,2]
[352618436,1739202644366,-500.0,0.00011232,2]
[352618437,1739202644375,-519.16,0.00011232,2]
[352618438,1739202644385,-500.0,0.00011369,2]
[352618439,1739202644394,-467.13,0.00011369,2]
[352618440,1739202644404,-495.23990772,0.00011369,2]
[352618441,1739202644417,-500.0,0.00011369,2]
[352618442,1739202644427,-500.0,0.00011369,2]
[352618443,1739202644436,-561.63,0.00011369,2]
[352618444,1739202644446,-500.0,0.00011369,2]
[352618445,1739202644456,-500.0,0.00011369,2]
[352618446,1739202644465,-445.03882441,0.00011369,2]
[352618447,1739202644474,-500.0,0.00011369,2]
[352618448,1739202644484,-500.0,0.00011369,2]
[352618449,1739202644493,-500.0,0.00011369,2]
[352618450,1739202644508,-500.0,0.00011369,2]
[352618451,1739202644518,-500.0,0.00011369,2]
[352618452,1739202644527,-500.0,0.00011369,2]
[352618453,1739202644536,-500.0,0.00011369,2]
[352618454,1739202644546,-500.0,0.00011369,2]
[352618455,1739202644556,-598.41,0.00011369,2]
[352618456,1739202644566,-500.0,0.00011369,2]
[352618457,1739202644575,-500.0,0.00011369,2]
[352618458,1739202644585,-500.0,0.00011369,2]
[352618459,1739202644594,-500.0,0.00011369,2]
[352618461,1739202644603,-500.0,0.00011369,2]
[352618462,1739202644613,-500.0,0.00011369,2]
[352618465,1739202644624,-500.0,0.00011369,2]
[352618467,1739202644634,-500.0,0.00011369,2]
[352618469,1739202644643,-500.0,0.00011369,2]
[352618471,1739202644653,-500.0,0.00011369,2]
[352618472,1739202644663,-500.0,0.00011369,2]
[352618475,1739202644673,-500.0,0.00011369,2]
[352618477,1739202644682,-366.21379889,0.00011369,2]
[352618479,1739202644692,-254.66862441,0.00011369,2]
[352618481,1739202644702,-500.0,0.00011369,2]
[352618483,1739202644711,-500.0,0.00011369,2]
[352618485,1739202644721,-500.0,0.00011369,2]
[352618486,1739202644730,-500.0,0.00011369,2]
[352618488,1739202644739,-765.09,0.00011369,2]
[352618491,1739202644749,-500.0,0.00011369,2]
[352618493,1739202644760,-500.0,0.00011369,2]
[352618495,1739202644770,-840.08,0.00011369,2]
[352618496,1739202644779,-500.0,0.00011369,2]
[352618498,1739202644789,-500.0,0.00011369,2]
[352618500,1739202644799,-682.96,0.00011369,2]
[352618502,1739202644808,-500.0,0.00011369,2]
[352618504,1739202644817,-500.0,0.00011369,2]
[352618506,1739202644827,-500.0,0.00011369,2]
[352618508,1739202644835,-271.62,0.00011369,2]
[352618510,1739202644845,-500.0,0.00011369,2]
[352618512,1739202644854,-500.0,0.00011369,2]
[352618514,1739202644863,-500.0,0.00011369,2]
[352618516,1739202644872,-500.0,0.00011369,2]
[352618517,1739202644882,-500.0,0.00011369,2]
[352618518,1739202644972,-500.0,0.00011369,2]
[352618519,1739202644983,-500.0,0.00011369,2]
[352618520,1739202644993,-500.0,0.00011369,2]
[352618522,1739202645002,-959.53,0.00011369,2]
[352618524,1739202645012,-500.0,0.00011369,2]
[352618526,1739202645024,-500.0,0.00011369,2]
[352618528,1739202645033,-500.0,0.00011369,2]
[352618530,1739202645043,-601.34,0.00011369,2]
[352618532,1739202645052,-352.044979,0.00011369,2]
[352618534,1739202645062,-225.411458,0.00011369,2]
[352618536,1739202645071,-352.044979,0.00011369,2]
[352618538,1739202645080,-225.411458,0.00011369,2]
[352618540,1739202645090,-500.0,0.00011369,2]
[352618542,1739202645099,-227.4,0.00011369,2]
[352618544,1739202645108,-151.0,0.00011369,2]
[352618546,1739202645117,-151.0,0.00011369,2]
[352618548,1739202645126,-151.0,0.00011369,2]
[352618550,1739202645135,-5550.25,0.00011369,2]
[352618552,1739202645145,-500.0,0.00011369,2]
[352618554,1739202645155,-151.0,0.00011369,2]
[352618555,1739202645166,-500.0,0.00011369,2]
[352618557,1739202645175,-500.0,0.00011369,2]
[352618559,1739202645185,-590.44,0.00011369,2]
[352618561,1739202645195,-151.0,0.00011369,2]
[352618563,1739202645205,-151.0,0.00011369,2]
[352618564,1739202645214,-151.0,0.00011369,2]
[352618566,1739202645223,-929.02,0.00011369,2]
[352618568,1739202645233,-500.0,0.00011369,2]
[352618570,1739202645242,-500.0,0.00011369,2]
[352618571,1739202645252,-2809.78,0.00011369,2]
[352618573,1739202645262,-1048.422582,0.00011369,2]
[352618575,1739202645271,-1048.422582,0.00011369,2]
[352618578,1739202645281,-500.0,0.00011369,2]
[352618580,1739202645292,-500.0,0.00011369,2]
[352618582,1739202645302,-500.0,0.00011369,2]
[352618584,1739202645312,-500.0,0.00011369,2]
[352618586,1739202645322,-500.0,0.00011369,2]
[352618587,1739202645331,-524.23,0.00011369,2]
[352618590,1739202645342,-500.0,0.00011369,2]
[352618592,1739202645352,-500.0,0.00011369,2]
[352618594,1739202645363,-607.76,0.00011369,2]
[352618596,1739202645373,-1474.98,0.00011369,2]
[352618598,1739202645383,-760.7,0.00011369,2]
[352618600,1739202645393,-500.0,0.00011369,2]
[352618602,1739202645403,-2308.8,0.00011369,2]
[352618604,1739202645413,-590.75,0.00011369,2]
[352618606,1739202645423,-500.0,0.00011369,2]
[352618608,1739202645433,-191.67532591,0.00011369,2]
[352618610,1739202645442,-15619.87,0.00011369,2]
[352618612,1739202645452,-500.0,0.00011369,2]
[352618614,1739202645461,-580.46,0.00011369,2]
[352618616,1739202645471,-400.2037739,0.00011369,2]
[352618618,1739202645481,-500.0,0.00011369,2]
[352618620,1739202645490,-500.0,0.00011369,2]
[352618622,1739202645500,-767.98,0.00011369,2]
[352618624,1739202645510,-500.0,0.00011369,2]
[352618626,1739202645519,-500.0,0.00011369,2]
[352618628,1739202645528,-500.0,0.00011369,2]
[352618630,1739202645538,-500.0,0.00011369,2]
[352618632,1739202645548,-151.0,0.00011369,2]
[352618633,1739202645558,-500.0,0.00011369,2]
[352618636,1739202645568,-500.0,0.00011369,2]
[352618638,1739202645577,-500.0,0.00011369,2]
[352618640,1739202645587,-196.79989874,0.00011369,2]
[352618642,1739202645598,-7290.29,0.00011369,2]
[352618645,1739202645608,-500.0,0.00011369,2]
[352618647,1739202645618,-500.0,0.00011369,2]
[352618650,1739202645628,-637.3,0.00011369,2]
[352618652,1739202645640,-500.0,0.00011369,2]
[352618654,1739202645656,-500.0,0.00011369,2]
[352618656,1739202645667,-500.0,0.00011369,2]
[352618658,1739202645677,-714.7,0.00011369,2]
[352618660,1739202645687,-500.0,0.00011369,2]
[352618662,1739202645696,-500.0,0.00011369,2]
[352618664,1739202645706,-500.0,0.00011369,2]
[352618666,1739202645715,-151.0,0.00011369,2]
[352618668,1739202645724,-500.0,0.00011369,2]
[352618670,1739202645734,-500.0,0.00011369,2]
[352618672,1739202645744,-151.0,0.00011369,2]
[352618674,1739202645753,-151.0,0.00011369,2]
[352618676,1739202645763,-548.48,0.00011369,2]
[352618678,1739202645773,-500.0,0.00011369,2]
[352618680,1739202645783,-167.904118,0.00011369,2]
[352618682,1739202645794,-167.904118,0.00011369,2]
[352618684,1739202645803,-1380.01,0.00011369,2]
[352618686,1739202645813,-1198.84,0.00011369,2]
[352618689,1739202645823,-500.0,0.00011369,2]
[352618691,1739202645832,-151.0,0.00011369,2]
[352618693,1739202645842,-151.0,0.00011369,2]
[352618695,1739202645852,-151.0,0.00011369,2]
[352618697,1739202645862,-3405.05,0.00011369,2]
[352618699,1739202645872,-665.96,0.00011369,2]
[352618701,1739202645882,-719.41,0.00011369,2]
[352618703,1739202645892,-500.0,0.00011369,2]
[352618705,1739202645902,-500.0,0.00011369,2]
[352618707,1739202645914,-500.0,0.00011369,2]
[352618709,1739202645926,-500.0,0.00011369,2]
[352618711,1739202645936,-151.0,0.00011369,2]
[352618713,1739202645945,-151.0,0.00011369,2]
[352618715,1739202645955,-551.03,0.00011369,2]
[352618717,1739202645966,-151.770735,0.00011369,2]
[352618719,1739202645975,-500.0,0.00011369,2]
[352618721,1739202645985,-500.0,0.00011369,2]
[352618723,1739202645996,-1686.9,0.00011369,2]
[352618725,1739202646006,-1707.89,0.00011369,2]
[352618727,1739202646016,-500.0,0.00011369,2]
[352618729,1739202646026,-500.0,0.00011369,2]
[352618731,1739202646035,-500.0,0.00011369,2]
[352618733,1739202646045,-500.0,0.00011369,2]
[352618735,1739202646054,-1024.33,0.00011369,2]
[352618737,1739202646064,-500.0,0.00011369,2]
[352618739,1739202646073,-245.52649207,0.00011369,2]
[352618741,1739202646083,-500.0,0.00011369,2]
[352618743,1739202646093,-519.16,0.00011369,2]
[352618745,1739202646103,-151.0,0.000114,2]
[352618747,1739202646112,-500.0,0.00011506,2]
[352618749,1739202646122,-500.0,0.00011506,2]
[352618751,1739202646131,-500.0,0.00011506,2]
[352618753,1739202646141,-500.0,0.00011506,2]
[352618755,1739202646151,-500.0,0.00011506,2]
[352618757,1739202646160,-500.0,0.00011506,2]
[352618759,1739202646170,-500.0,0.00011506,2]
[352618761,1739202646179,-500.0,0.00011506,2]
[352618763,1739202646188,-500.0,0.00011506,2]
[352618765,1739202646198,-598.41,0.00011506,2]
[352618767,1739202646208,-500.0,0.00011506,2]
[352618769,1739202646217,-500.0,0.00011506,2]
[352618771,1739202646226,-500.0,0.00011506,2]
[352618773,1739202646235,-500.0,0.00011506,2]
[352618775,1739202646245,-500.0,0.00011506,2]
[352618777,1739202646253,-500.0,0.00011506,2]
[352618779,1739202646263,-500.0,0.00011506,2]
[352618781,1739202646272,-500.0,0.00011506,2]
[352618783,1739202646282,-500.0,0.00011506,2]
[352618785,1739202646292,-500.0,0.00011506,2]
[352618787,1739202646301,-500.0,0.00011506,2]
[352618789,1739202646311,-500.0,0.00011506,2]
[352618791,1739202646320,-500.0,0.00011506,2]
[352618793,1739202646330,-151.0,0.00011506,2]
[352618795,1739202646339,-562.60077828,0.00011506,2]
[352618797,1739202646349,-765.09,0.00011506,2]
[352618799,1739202646359,-500.0,0.00011506,2]
[352618801,1739202646369,-500.0,0.00011506,2]
[352618803,1739202646380,-840.08,0.00011506,2]
[352618805,1739202646390,-500.0,0.00011506,2]
[352618807,1739202646400,-500.0,0.00011506,2]
[352618809,1739202646409,-682.96,0.00011506,2]
[352618811,1739202646421,-500.0,0.00011506,2]
[352618813,1739202646431,-500.0,0.00011506,2]
[352618815,1739202646440,-503.73812964,0.00011506,2]
[352618817,1739202646449,-500.0,0.00011506,2]
[352618819,1739202646458,-500.0,0.00011506,2]
[352618821,1739202646469,-500.0,0.00011506,2]
[352618823,1739202646479,-500.0,0.00011506,2]
[352618825,1739202646488,-268.9691924,0.00011506,2]
[352618827,1739202646498,-959.53,0.00011506,2]
[352618829,1739202646507,-504.71221909,0.00011506,2]
[352618831,1739202646517,-500.0,0.00011506,2]
[352618833,1739202646526,-500.0,0.00011506,2]
[352618835,1739202646535,-183.418955,0.00011506,2]
[352618837,1739202646545,-601.34,0.00011506,2]
[352618839,1739202646554,-183.418955,0.00011506,2]
[352618841,1739202646563,-151.0,0.00011506,2]
[352618843,1739202646573,-500.0,0.00011506,2]
[352618845,1739202646582,-5550.25,0.00011506,2]
[352618847,1739202646592,-500.0,0.00011506,2]
[352618849,1739202646601,-500.0,0.00011506,2]
[352618851,1739202646610,-500.0,0.00011506,2]
[352618853,1739202646619,-590.44,0.00011506,2]
[352618854,1739202646629,-929.02,0.00011506,2]
[352618864,1739202646717,-500.0,0.00011506,2]
[352618866,1739202646727,-2809.78,0.00011506,2]
[352618868,1739202646737,-500.0,0.00011506,2]
[352618869,1739202646748,-500.0,0.00011506,2]
[352618870,1739202646757,-500.0,0.00011506,2]
[352618871,1739202646767,-524.23,0.00011506,2]
[352618872,1739202646778,-500.0,0.00011506,2]
[352618873,1739202646789,-607.76,0.00011506,2]
[352618874,1739202646799,-1474.98,0.00011506,2]
[352618875,1739202646809,-760.7,0.00011506,2]
[352618876,1739202646819,-500.0,0.00011506,2]
[352618877,1739202646829,-2308.8,0.00011506,2]
[352618878,1739202646839,-590.75,0.00011506,2]
[352618880,1739202646848,-500.0,0.00011506,2]
[352618882,1739202646858,-15619.87,0.00011506,2]
[352618884,1739202646868,-580.46,0.00011506,2]
[352618886,1739202646877,-500.0,0.00011506,2]
[352618888,1739202646887,-500.0,0.00011506,2]
[352618890,1739202646897,-500.0,0.00011506,2]
[352618892,1739202646906,-767.98,0.00011506,2]
[352618894,1739202646917,-500.0,0.00011506,2]
[352618896,1739202646931,-500.0,0.00011506,2]
[352618898,1739202646941,-500.0,0.00011506,2]
[352618900,1739202646951,-500.0,0.00011506,2]
[352618902,1739202646960,-500.0,0.00011506,2]
[352618904,1739202646971,-500.0,0.00011506,2]
[352618906,1739202646981,-7290.29,0.00011506,2]
[352618908,1739202646991,-500.0,0.00011506,2]
[352618910,1739202647002,-526.4599109,0.00011506,2]
[352618912,1739202647012,-637.3,0.00011506,2]
[352618914,1739202647022,-500.0,0.00011506,2]
[352618916,1739202647032,-182.41134264,0.00011506,2]
[352618918,1739202647042,-500.0,0.00011506,2]
[352618920,1739202647051,-714.7,0.00011506,2]
[352618922,1739202647061,-500.87565422,0.00011506,2]
[352618924,1739202647070,-500.0,0.00011506,2]
[352618926,1739202647080,-151.0,0.00011506,2]
[352618928,1739202647091,-318.84,0.00011506,2]
[352618930,1739202647100,-500.0,0.00011506,2]
[352618932,1739202647110,-151.0,0.00011506,2]
[352618934,1739202647120,-548.48,0.00011506,2]
[352618936,1739202647129,-151.0,0.00011506,2]
[352618938,1739202647138,-500.0,0.00011506,2]
[352618940,1739202647147,-167.904118,0.00011506,2]
[352618942,1739202647157,-167.904118,0.00011506,2]
[352618944,1739202647167,-1380.01,0.00011506,2]
[352618946,1739202647176,-1198.84,0.00011506,2]
[352618948,1739202647186,-500.0,0.00011506,2]
[352618950,1739202647196,-151.0,0.00011506,2]
[352618952,1739202647206,-151.0,0.00011506,2]
[352618954,1739202647215,-151.0,0.00011506,2]
[352618956,1739202647225,-3405.05,0.00011506,2]
[352618958,1739202647235,-665.96,0.00011506,2]
[352618960,1739202647245,-719.41,0.00011506,2]
[352618962,1739202647255,-500.0,0.00011506,2]
[352618964,1739202647265,-500.0,0.00011506,2]
[352618966,1739202647274,-500.0,0.00011506,2]
[352618968,1739202647284,-500.0,0.00011506,2]
[352618970,1739202647293,-551.03,0.00011506,2]
[352618972,1739202647303,-500.0,0.00011506,2]
[352618974,1739202647313,-604.77066298,0.00011506,2]
[352618976,1739202647324,-1686.9,0.00011506,2]
[352618978,1739202647334,-1707.89,0.00011506,2]
[352618980,1739202647344,-500.0,0.00011506,2]
[352618982,1739202647354,-500.0,0.00011506,2]
[352618984,1739202647364,-394.00282092,0.00011506,2]
[352618986,1739202647373,-500.0,0.00011506,2]
[352618988,1739202647383,-1024.33,0.00011506,2]
[352618990,1739202647392,-500.0,0.00011506,2]
[352618992,1739202647402,-500.0,0.00011506,2]
[352618994,1739202647412,-519.16,0.00011506,2]
[352618996,1739202647422,-511.94639576,0.00011521,2]
[352618998,1739202647432,-500.0,0.0001156,2]
[352619000,1739202647442,-500.0,0.0001156,2]
[352619001,1739202647452,-500.0,0.00011643,2]
[352619003,1739202647462,-500.0,0.00011643,2]
[352619006,1739202647473,-437.36013187,0.00011643,2]
[352619007,1739202647482,-500.0,0.00011643,2]
[352619009,1739202647492,-468.83,0.00011643,2]
[352619011,1739202647503,-315.26828322,0.00011643,2]
[352619013,1739202647512,-500.0,0.00011643,2]
[352619015,1739202647523,-598.41,0.00011643,2]
[352619017,1739202647534,-500.0,0.00011643,2]
[352619019,1739202647543,-500.0,0.00011643,2]
[352619021,1739202647553,-500.0,0.00011643,2]
[352619023,1739202647563,-500.0,0.00011643,2]
[352619025,1739202647573,-500.0,0.00011643,2]
[352619027,1739202647582,-151.0,0.00011643,2]
[352619029,1739202647592,-505.02632934,0.00011643,2]
[352619031,1739202647602,-500.0,0.00011643,2]
[352619034,1739202647613,-151.0,0.00011643,2]
[352619036,1739202647622,-500.0,0.00011643,2]
[352619038,1739202647633,-151.0,0.00011643,2]
[352619040,1739202647643,-500.0,0.00011643,2]
[352619041,1739202647652,-306.06,0.00011643,2]
[352619044,1739202647662,-401.083147,0.00011643,2]
[352619046,1739202647672,-401.083147,0.00011643,2]
[352619048,1739202647682,-500.0,0.00011643,2]
[352619049,1739202647692,-500.0,0.00011643,2]
[352619051,1739202647702,-765.09,0.00011643,2]
[352619053,1739202647712,-500.0,0.00011643,2]
[352619056,1739202647722,-500.0,0.00011643,2]
[352619058,1739202647732,-840.08,0.00011643,2]
[352619060,1739202647742,-395.25090178,0.00011643,2]
[352619062,1739202647752,-682.96,0.00011643,2]
[352619064,1739202647762,-500.0,0.00011643,2]
[352619066,1739202647772,-151.0,0.00011643,2]
[352619068,1739202647782,-241.470864,0.00011643,2]
[352619070,1739202647792,-410.35298463,0.00011643,2]
[352619072,1739202647802,-241.470864,0.00011643,2]
[352619074,1739202647813,-500.0,0.00011643,2]
[352619076,1739202647823,-500.0,0.00011643,2]
[352619078,1739202647833,-151.0,0.00011643,2]
[352619080,1739202647843,-959.53,0.00011643,2]
[352619082,1739202647854,-151.0,0.00011643,2]
[352619084,1739202647864,-500.0,0.00011643,2]
[352619086,1739202647874,-601.34,0.00011643,2]
[352619088,1739202647885,-352.044979,0.00011643,2]
[352619090,1739202647895,-225.411458,0.00011643,2]
[352619092,1739202647905,-352.044979,0.00011643,2]
[352619094,1739202647917,-225.411458,0.00011643,2]
[352619096,1739202647931,-597.8535654,0.00011643,2]
[352619098,1739202647940,-151.0,0.00011643,2]
[352619100,1739202647951,-213.673394,0.00011643,2]
[352619102,1739202647963,-5550.25,0.00011643,2]
[352619104,1739202647972,-500.0,0.00011643,2]
[352619106,1739202647982,-500.0,0.00011643,2]
[352619108,1739202647991,-500.0,0.00011643,2]
[352619110,1739202648004,-590.44,0.00011643,2]
[352619112,1739202648014,-151.0,0.00011643,2]
[352619114,1739202648024,-151.0,0.00011643,2]
[352619116,1739202648034,-929.02,0.00011643,2]
[352619118,1739202648045,-2809.78,0.00011643,2]
[352619120,1739202648055,-1048.422582,0.00011643,2]
[352619122,1739202648067,-1048.422582,0.00011643,2]
[352619124,1739202648079,-500.0,0.00011643,2]
[352619126,1739202648089,-373.94114857,0.00011643,2]
[352619128,1739202648100,-524.23,0.00011643,2]
[352619130,1739202648110,-500.0,0.00011643,2]
[352619132,1739202648120,-607.76,0.00011643,2]
[352619134,1739202648131,-1474.98,0.00011643,2]
[352619136,1739202648141,-760.7,0.00011643,2]
[352619138,1739202648152,-500.0,0.00011643,2]
[352619140,1739202648162,-2308.8,0.00011643,2]
[352619142,1739202648172,-590.75,0.00011643,2]
[352619144,1739202648182,-500.0,0.00011643,2]